fUST/lending_fUST_20250915
["ID","MTS","AMOUNT","RATE_DAILY","PERIOD"]
[385652291,1757946639283,-414.14970032,0.00024883,2]
[385652292,1757946639291,-336.99401837,0.00024883,2]
[385652293,1757946639301,-4460.3473049,0.00024884,2]
[385652294,1757946639310,-215.260999,0.00024884,10]
[385652295,1757946639320,-370000.0,0.00024884,2]
[385652296,1757946639329,-176400.98709786,0.000249,2]
[385652308,1757946640249,-2344.99999997,0.000249,2]
[385652315,1757946643418,-374.61,0.0002489,10]
[385652316,1757946643428,-345.08326761,0.000249,2]
[385652317,1757946643440,-2302.89408699,0.000249,2]
[385652347,1757946646455,-480.0,0.00024657,3]
[385652349,1757946646465,-232904.25736257,0.000249,2]
[385652351,1757946646475,-3873.73463775,0.000249,30]
[385652354,1757946646484,-1288.27975799,0.00024906,2]
[385652356,1757946646494,-500.0,0.0002493,3]
[385652357,1757946646503,-847.45018724,0.00024931,3]
[385652360,1757946646513,-480.0,0.00024931,3]
[385652362,1757946646523,-480.0,0.00024931,3]
[385652364,1757946646532,-480.0,0.00024931,3]
[385652366,1757946646542,-480.0,0.00024931,3]
[385652368,1757946646551,-480.0,0.00024931,3]
[385652370,1757946646562,-480.0,0.00024931,3]
[385652371,1757946646571,-480.0,0.00024931,3]
[385652373,1757946646580,-480.0,0.00024931,3]
[385652375,1757946646590,-359.61,0.00024931,3]
[385652379,1757946646599,-480.0,0.00024931,3]
[385652381,1757946646608,-480.0,0.00024931,3]
[385652385,1757946646618,-1119.76,0.00024931,3]
[385652387,1757946646628,-368.09619398,0.00024931,3]
[385652389,1757946646638,-525.27,0.00024931,3]
[385652391,1757946646647,-480.0,0.00024931,3]
[385652393,1757946646656,-4685.74,0.00024931,3]
[385652395,1757946646666,-480.0,0.00024931,3]
[385652397,1757946646675,-480.0,0.00024931,3]
[385652399,1757946646684,-480.0,0.00024931,3]
[385652400,1757946646694,-480.0,0.00024931,3]
[385652403,1757946646703,-217.8981455,0.00024931,3]
[385652404,1757946646713,-540.27357921,0.00024931,3]
[385652407,1757946646722,-480.0,0.00024931,3]
[385652408,1757946646731,-480.0,0.00024931,3]
[385652410,1757946646741,-480.0,0.00024931,3]
[385652412,1757946646750,-480.0,0.00024931,3]
[385652414,1757946646760,-480.0,0.00024931,3]
[385652416,1757946646768,-480.0,0.00024931,3]
[385652418,1757946646778,-842.88,0.00024931,3]
[385652420,1757946646787,-480.0,0.00024931,3]
[385652422,1757946646796,-480.0,0.00024931,3]
[385652424,1757946646806,-480.0,0.00024931,3]
[385652426,1757946646816,-480.0,0.00024931,3]
[385652428,1757946646826,-480.0,0.00024931,3]
[385652431,1757946646836,-480.0,0.00024931,3]
[385652433,1757946646845,-2806.87,0.00024931,3]
[385652434,1757946646855,-480.0,0.00024931,3]
[385652436,1757946646864,-151.0,0.00024932,2]
[385652439,1757946646873,-151.0,0.00024932,2]
[385652440,1757946646883,-151.0,0.00024932,2]
[385652442,1757946646892,-500.0,0.00024932,2]
[385652444,1757946646901,-206.88291474,0.00024932,2]
[385652447,1757946646911,-500.0,0.00024932,2]
[385652449,1757946646921,-500.0,0.00024932,2]
[385652450,1757946646930,-500.0,0.00024932,2]
[385652453,1757946646939,-151.0,0.00024932,2]
[385652454,1757946646949,-193.65231507,0.00024932,2]
[385652456,1757946646958,-151.0,0.00024932,2]
[385652458,1757946646967,-177.11328079,0.00024932,2]
[385652460,1757946646977,-151.0,0.00024932,2]
[385652462,1757946646986,-500.0,0.00024932,2]
[385652464,1757946646995,-151.0,0.00024932,2]
[385652466,1757946647004,-151.0,0.00024932,2]
[385652468,1757946647013,-151.0,0.00024932,2]
[385652470,1757946647022,-151.0,0.00024932,2]
[385652472,1757946647032,-500.0,0.00024932,2]
[385652474,1757946647041,-151.0,0.00024932,2]
[385652477,1757946647051,-151.0,0.00024932,2]
[385652479,1757946647062,-500.0,0.00024932,2]
[385652481,1757946647076,-220.59628392,0.00024932,2]
[385652483,1757946647088,-500.0,0.00024932,2]
[385652484,1757946647105,-500.0,0.00024932,2]
[385652486,1757946647114,-500.0,0.00024932,2]
[385652488,1757946647123,-500.0,0.00024973,2]
[385652490,1757946647133,-500.0,0.00024973,2]
[385652493,1757946647142,-500.0,0.00024973,2]
[385652494,1757946647152,-500.0,0.00024973,2]
[385652497,1757946647161,-500.0,0.00024973,2]
[385652498,1757946647171,-500.0,0.00024973,2]
[385652500,1757946647180,-500.0,0.00024973,2]
[385652503,1757946647189,-161.00539842,0.00024989,2]
[385652504,1757946647198,-5090.32531551,0.0002499,2]
[385652506,1757946647207,-500.0,0.00024994,3]
[385652509,1757946647217,-100000.0,0.00025,5]
[385652511,1757946647226,-657.71941941,0.00025006,2]
[385652513,1757946647235,-172.4126687,0.00025046,2]
[385652515,1757946647245,-5090.32531551,0.0002507,2]
[385652517,1757946647255,-500.0,0.00025073,2]
[385652518,1757946647264,-500.74865934,0.00025073,2]
[385652520,1757946647273,-500.0,0.00025073,2]
[385652523,1757946647282,-500.0,0.00025073,2]
[385652525,1757946647291,-500.0,0.00025073,2]
[385652527,1757946647300,-160.57178539,0.00025073,2]
[385652529,1757946647310,-454.56821667,0.00025073,2]
[385652531,1757946647323,-45.43178333,0.00025073,2]
[385652533,1757946647332,-500.0,0.00025073,2]
[385652535,1757946647341,-592.25875634,0.00025073,2]
[385652537,1757946647351,-500.0,0.00025073,2]
[385652539,1757946647362,-316.45646507,0.00025073,2]
[385652541,1757946647371,-500.0,0.00025073,2]
[385652543,1757946647382,-500.0,0.00025073,2]
[385652545,1757946647391,-500.0,0.00025073,2]
[385652547,1757946647401,-500.0,0.00025073,2]
[385652549,1757946647410,-500.0,0.00025073,2]
[385652551,1757946647420,-160.17006397,0.00025073,2]
[385652553,1757946647429,-203.1771519,0.00025073,2]
[385652555,1757946647438,-500.0,0.00025073,2]
[385652557,1757946647447,-500.0,0.00025073,2]
[385652559,1757946647457,-500.0,0.00025073,2]
[385652561,1757946647466,-500.0,0.00025073,2]
[385652563,1757946647476,-500.0,0.00025073,2]
[385652564,1757946647484,-500.0,0.00025073,2]
[385652566,1757946647494,-500.0,0.00025073,2]
[385652569,1757946647503,-500.0,0.00025079,3]
[385652570,1757946647512,-500.0,0.00025079,3]
[385652572,1757946647522,-500.0,0.00025079,3]
[385652574,1757946647531,-8115.0295362,0.0002508,2]
[385652577,1757946647540,-32565.7500083,0.0002508,2]
[385652579,1757946647550,-20995.6259863,0.0002508,2]
[385652581,1757946647559,-18283.94521866,0.0002508,2]
[385652582,1757946647583,-27067.50468149,0.0002508,2]
[385652900,1757946882216,1042.14,0.00027397,120]
[385652903,1757947696270,238.80670708,0.00024,30]
[385652904,1757947728202,163.970046,0.00027397,120]
[385652905,1757947745137,-5000.0,0.00021855,2]
[385652906,1757947745161,-1211.82243082,0.00022076,2]
[385652964,1757947832562,-205.45494034,0.00021855,2]
[385652967,1757947832572,-177.197458,0.00023517,2]
[385652969,1757947832581,-530.280089,0.00023654,2]
[385652971,1757947832590,-151.0,0.00024075,2]
[385652973,1757947832600,-66.46751266,0.00024075,2]
[385652975,1757947832611,-133.71646543,0.00024075,2]
[385652977,1757947832620,-168.0,0.00024542,2]
[385652979,1757947832629,-233.17181032,0.00024557,2]
[385652981,1757947832639,-313.11171925,0.00024649,2]
[385653058,1757947838862,-886.88828075,0.00024649,2]
[385653060,1757947838871,-1200.0,0.0002465,2]
[385653062,1757947838882,-300.0,0.0002465,2]
[385653064,1757947838892,-300.0,0.0002465,2]
[385653066,1757947838901,-300.0,0.0002465,2]
[385653068,1757947838909,-300.0,0.0002465,2]
[385653070,1757947838926,-34257.76442792,0.00024651,2]
[385653072,1757947838935,-500.0,0.00024657,3]
[385653074,1757947838944,-233.24851325,0.00024657,3]
[385653077,1757947838953,-160.0,0.00024657,3]
[385653078,1757947838962,-480.0,0.00024657,3]
[385653081,1757947838971,-480.0,0.00024657,3]
[385653083,1757947838980,-480.0,0.00024657,3]
[385653085,1757947838989,-480.0,0.00024657,3]
[385653087,1757947838998,-629.27,0.00024657,3]
[385653089,1757947839007,-480.0,0.00024657,3]
[385653090,1757947839016,-174.48234282,0.00024657,3]
[385653091,1757947839025,-480.0,0.00024657,3]
[385653092,1757947839035,-627.8,0.00024657,3]
[385653093,1757947839044,-489.74970856,0.00024657,3]
[385653094,1757947839054,-423.75429237,0.00024657,3]
[385653095,1757947839063,-525.78696221,0.00024657,2]
[385653096,1757947839072,-480.0,0.00024657,3]
[385653097,1757947839081,-480.0,0.00024657,3]
[385653098,1757947839090,-480.0,0.00024657,3]
[385653099,1757947839099,-282.38,0.00024657,3]
[385653100,1757947839108,-480.0,0.00024657,3]
[385653101,1757947839118,-510.05,0.00024657,3]
[385653102,1757947839127,-500.0,0.00024657,3]
[385653103,1757947839136,-317.60967905,0.00024657,3]
[385653104,1757947839145,-480.0,0.00024657,3]
[385653105,1757947839154,-4295.26,0.00024657,3]
[385653106,1757947839163,-1094.72,0.00024657,3]
[385653107,1757947839172,-480.0,0.00024657,3]
[385653109,1757947839181,-480.0,0.00024657,3]
[385653111,1757947839190,-237.7,0.00024657,3]
[385653113,1757947839199,-480.0,0.00024657,3]
[385653115,1757947839208,-480.0,0.00024657,3]
[385653117,1757947839217,-480.0,0.00024657,3]
[385653119,1757947839226,-480.0,0.00024657,3]
[385653121,1757947839235,-480.0,0.00024657,3]
[385653123,1757947839244,-480.0,0.00024657,3]
[385653125,1757947839253,-480.0,0.00024657,3]
[385653127,1757947839263,-480.0,0.00024657,3]
[385653129,1757947839272,-480.0,0.00024657,3]
[385653131,1757947839281,-220.49723217,0.00024657,3]
[385653133,1757947839289,-480.0,0.00024657,3]
[385653135,1757947839298,-772.64,0.00024657,3]
[385653137,1757947839307,-480.0,0.00024657,3]
[385653139,1757947839316,-160.0,0.00024657,3]
[385653141,1757947839324,-480.0,0.00024657,3]
[385653143,1757947839333,-156.5,0.00024657,3]
[385653145,1757947839342,-480.0,0.00024657,3]
[385653147,1757947839351,-480.0,0.00024657,3]
[385653149,1757947839361,-2572.97,0.00024657,3]
[385653151,1757947839370,-480.0,0.00024657,3]
[385653153,1757947839379,-480.0,0.00024657,3]
[385653155,1757947839387,-299.01551572,0.00024672,2]
[385653157,1757947839396,-500.0,0.00024672,2]
[385653159,1757947839405,-500.0,0.00024672,2]
[385653161,1757947839414,-448.74932613,0.00024672,2]
[385653163,1757947839423,-500.0,0.00024673,2]
[385653165,1757947839433,-500.0,0.00024673,2]
[385653167,1757947839442,-501.52379241,0.00024673,2]
[385653168,1757947839451,-500.0,0.00024673,2]
[385653171,1757947839460,-500.0,0.00024673,2]
[385653173,1757947839469,-500.0,0.00024673,2]
[385653175,1757947839478,-500.0,0.00024673,2]
[385653176,1757947839486,-262.46798403,0.00024673,2]
[385653179,1757947839495,-1030.6238064,0.00024683,2]
[385653181,1757947839504,-1030.62380639,0.00024717,2]
[385653183,1757947839513,-168.0,0.00024725,2]
[385653185,1757947839523,-2944.0,0.00024748,7]
[385653187,1757947839532,-688.69,0.00024749,10]
[385653189,1757947839541,-478.26,0.00024749,10]
[385653190,1757947839549,-398.55,0.00024749,10]
[385653193,1757947839558,-1030.62380639,0.00024751,2]
[385653195,1757947839567,-1000.0,0.00024759,2]
[385653197,1757947839576,-1000.0,0.00024759,2]
[385653198,1757947839585,-1000.0,0.00024759,2]
[385653201,1757947839594,-1000.0,0.00024759,2]
[385653203,1757947839603,-1000.0,0.00024759,2]
[385653205,1757947839612,-1000.0,0.00024759,2]
[385653207,1757947839620,-1000.0,0.00024759,2]
[385653209,1757947839629,-1000.0,0.00024759,2]
[385653210,1757947839639,-734.13177072,0.00024759,2]
[385653212,1757947839648,-500.0,0.00024759,2]
[385653214,1757947839657,-500.0,0.00024759,2]
[385653217,1757947839667,-151.28600113,0.00024759,2]
[385653219,1757947839678,-250.0,0.00024759,2]
[385653221,1757947839687,-500.0,0.00024759,2]
[385653223,1757947839696,-250.0,0.00024759,2]
[385653225,1757947839705,-500.0,0.00024759,2]
[385653227,1757947839714,-250.0,0.00024759,2]
[385653229,1757947839723,-500.0,0.00024759,2]
[385653231,1757947839733,-250.0,0.00024759,2]
[385653233,1757947839742,-500.0,0.00024759,2]
[385653235,1757947839751,-250.0,0.00024759,2]
[385653237,1757947839760,-250.0,0.00024759,2]
[385653239,1757947839769,-151.0,0.00024759,2]
[385653241,1757947839778,-500.0,0.00024759,2]
[385653243,1757947839790,-151.0,0.00024759,2]
[385653245,1757947839799,-250.0,0.00024759,2]
[385653247,1757947839809,-151.0,0.00024759,2]
[385653249,1757947839818,-500.0,0.00024759,2]
[385653251,1757947839827,-151.0,0.00024759,2]
[385653253,1757947839836,-250.0,0.00024759,2]
[385653255,1757947839849,-151.0,0.00024759,2]
[385653257,1757947839858,-500.0,0.00024759,2]
[385653259,1757947839867,-151.0,0.00024759,2]
[385653261,1757947839876,-250.0,0.00024759,2]
[385653263,1757947839886,-151.85000742,0.00024759,2]
[385653265,1757947839895,-151.0,0.00024759,2]
[385653267,1757947839904,-500.0,0.00024759,2]
[385653269,1757947839913,-250.0,0.00024759,2]
[385653271,1757947839924,-151.0,0.00024759,2]
[385653273,1757947839934,-500.0,0.00024759,2]
[385653275,1757947839944,-500.0,0.00024759,2]
[385653277,1757947839952,-250.0,0.00024759,2]
[385653279,1757947839961,-151.0,0.00024759,2]
[385653281,1757947839970,-151.0,0.00024759,2]
[385653283,1757947839979,-500.0,0.00024759,2]
[385653285,1757947839988,-250.0,0.00024759,2]
[385653287,1757947839997,-180.26584618,0.00024759,2]
[385653289,1757947840007,-500.0,0.00024759,2]
[385653291,1757947840016,-250.0,0.00024759,2]
[385653293,1757947840025,-151.0,0.00024759,2]
[385653295,1757947840034,-500.0,0.00024759,2]
[385653297,1757947840043,-151.0,0.00024759,2]
[385653299,1757947840052,-151.0,0.00024759,2]
[385653301,1757947840061,-279.64793684,0.00024759,2]
[385653303,1757947840070,-151.0,0.00024759,2]
[385653305,1757947840079,-151.0,0.00024759,2]
[385653307,1757947840089,-151.0,0.00024759,2]
[385653309,1757947840098,-151.0,0.00024759,2]
[385653311,1757947840107,-151.0,0.00024759,2]
[385653313,1757947840116,-151.0,0.00024759,2]
[385653315,1757947840125,-151.0,0.00024759,2]
[385653317,1757947840134,-151.0,0.00024759,2]
[385653319,1757947840143,-151.0,0.00024759,2]
[385653321,1757947840153,-153.06093155,0.00024759,2]
[385653323,1757947840162,-573.91,0.00024763,10]
[385653325,1757947840171,-501.53273402,0.00024773,2]
[385653327,1757947840181,-500.0,0.00024773,2]
[385653330,1757947840190,-500.99050421,0.00024773,2]
[385653331,1757947840199,-500.0,0.00024773,2]
[385653334,1757947840208,-500.0,0.00024773,2]
[385653336,1757947840217,-500.0,0.00024773,2]
[385653338,1757947840226,-500.0,0.00024773,2]
[385653340,1757947840236,-500.0,0.00024773,2]
[385653342,1757947840245,-500.0,0.00024773,2]
[385653344,1757947840254,-500.0,0.00024773,2]
[385653346,1757947840263,-1956.65,0.00024773,2]
[385653348,1757947840271,-414.14970032,0.00024773,2]
[385653350,1757947840281,-336.99401837,0.00024773,2]
[385653352,1757947840290,-184.64252916,0.00024773,2]
[385653354,1757947840299,-152.70958598,0.00024773,2]
[385653356,1757947840308,-500.0,0.00024773,2]
[385653358,1757947840317,-566.65808324,0.00024773,2]
[385653360,1757947840326,-215.260999,0.00024774,10]
[385653362,1757947840336,-370000.0,0.00024774,2]
[385653364,1757947840345,-168.0,0.00024783,2]
[385653366,1757947840354,-1030.62380639,0.00024785,2]
[385653368,1757947840363,-168.0,0.00024795,2]
[385653370,1757947840372,-10689.6831626,0.000248,2]
[385653372,1757947840381,-1030.62380639,0.00024819,2]
[385653374,1757947840390,-168.0,0.00024823,2]
[385653376,1757947840399,-347.04780642,0.00024873,2]
[385653378,1757947840408,-500.0,0.00024873,2]
[385653380,1757947840417,-500.0,0.00024873,2]
[385653382,1757947840428,-500.0,0.00024873,2]
[385653384,1757947840437,-500.0,0.00024873,2]
[385653386,1757947840446,-500.0,0.00024873,2]
[385653388,1757947840455,-500.0,0.00024873,2]
[385653390,1757947840465,-500.0,0.00024873,2]
[385653392,1757947840474,-500.0,0.00024873,2]
[385653394,1757947840482,-500.0,0.00024873,2]
[385653396,1757947840491,-717.47335816,0.0002489,2]
[385653398,1757947840500,-84559.78361712,0.000249,2]
[385653400,1757947840513,-42625.02642999,0.000249,2]
[385653403,1757947840524,-1113.05740265,0.000249,2]
[385653407,1757947840556,-5598.57321999,0.00024683,2]
[385653409,1757947840566,-39103.75677999,0.000249,2]
[385653411,1757947840577,-246779.70416725,0.000249,2]
[385653413,1757947840586,-168.0,0.00024919,2]
[385653415,1757947840595,-500.0,0.00024931,3]
[385653417,1757947840603,-480.0,0.00024931,3]
[385653419,1757947840612,-480.0,0.00024931,3]
[385653421,1757947840621,-480.0,0.00024931,3]
[385653423,1757947840631,-480.0,0.00024931,3]
[385653425,1757947840640,-510.05,0.00024931,3]
[385653427,1757947840649,-623.28909831,0.00024931,3]
[385653429,1757947840658,-4295.26,0.00024931,3]
[385653431,1757947840667,-1094.72,0.00024931,3]
[385653433,1757947840678,-480.0,0.00024931,3]
[385653436,1757947840687,-593.08,0.00024931,3]
[385653437,1757947840696,-480.0,0.00024931,3]
[385653439,1757947840705,-480.0,0.00024931,3]
[385653441,1757947840714,-461.04,0.00024931,3]
[385653443,1757947840723,-480.0,0.00024931,3]
[385653445,1757947840732,-480.0,0.00024931,3]
[385653446,1757947840742,-480.0,0.00024931,3]
[385653448,1757947840751,-480.0,0.00024931,3]
[385653449,1757947840760,-772.64,0.00024931,3]
[385653451,1757947840769,-480.0,0.00024931,3]
[385653453,1757947840779,-480.0,0.00024931,3]
[385653455,1757947840788,-152.05,0.00024931,3]
[385653457,1757947840798,-480.0,0.00024931,3]
[385653459,1757947840807,-2572.97,0.00024931,3]
[385653461,1757947840816,-480.0,0.00024931,3]
[385653463,1757947840826,-480.0,0.00024931,3]
[385653464,1757947840837,-151.0,0.00024932,2]
[385653465,1757947840849,-151.0,0.00024932,2]
[385653466,1757947840858,-151.0,0.00024932,2]
[385653467,1757947840867,-151.0,0.00024932,2]
[385653468,1757947840876,-151.0,0.00024932,2]
[385653469,1757947840886,-163.0,0.00024932,2]
[385653470,1757947840895,-151.0,0.00024932,2]
[385653471,1757947840904,-151.0,0.00024932,2]
[385653472,1757947840914,-155.35674608,0.00024932,2]
[385653473,1757947840923,-188.30764878,0.00024932,2]
[385653474,1757947840933,-500.0,0.00024932,2]
[385653475,1757947840942,-151.0,0.00024932,2]
[385653476,1757947840951,-151.0,0.00024932,2]
[385653477,1757947840961,-151.0,0.00024932,2]
[385653478,1757947840970,-500.0,0.00024932,2]
[385653479,1757947840979,-500.0,0.00024932,2]
[385653480,1757947840988,-500.0,0.00024932,2]
[385653481,1757947840998,-500.0,0.00024932,2]
[385653482,1757947841090,-192.40502363,0.00024932,2]
[385653483,1757947841124,-151.0,0.00024932,2]
[385653484,1757947841141,-500.0,0.00024932,2]
[385653485,1757947841151,-500.0,0.00024932,2]
[385653486,1757947841163,-500.0,0.00024932,2]
[385653487,1757947841179,-151.0,0.00024932,2]
[385653488,1757947841203,-503.71236141,0.00025,2]
[385653489,1757947841213,-1187.74257362,0.00025031,2]
[385653490,1757947841222,-1272.4325781,0.00025041,2]
[385653491,1757947841231,-8722.0797695,0.00025041,2]
[385653492,1757947841240,-4501.5244722,0.00025041,2]
[385653493,1757947841250,-200.0,0.00025069,2]
[385653494,1757947841259,-1187.74257362,0.0002507,2]
[385653496,1757947841268,-501.28193224,0.00025073,2]
[385653498,1757947841277,-501.22314137,0.00025073,2]
[385653500,1757947841286,-500.894167,0.00025073,2]
[385653501,1757947841295,-501.2309403,0.00025073,2]
[385653502,1757947841303,-500.0,0.00025073,2]
[385653503,1757947841313,-500.0,0.00025073,2]
[385653504,1757947841321,-500.0,0.00025073,2]
[385653505,1757947841330,-280.10211624,0.00025073,2]
[385653506,1757947841339,-501.06223542,0.00025073,2]
[385653507,1757947841348,-500.0,0.00025073,2]
[385653508,1757947841358,-500.0,0.00025073,2]
[385653509,1757947841368,-500.0,0.00025073,2]
[385653510,1757947841377,-500.0,0.00025073,2]
[385653511,1757947841386,-500.0,0.00025073,2]
[385653512,1757947841394,-500.0,0.00025073,2]
[385653513,1757947841404,-500.0,0.00025073,2]
[385653514,1757947841412,-500.0,0.00025073,2]
[385653515,1757947841422,-150.0,0.00025073,2]
[385653516,1757947841432,-27724.17022275,0.0002508,2]
[385653517,1757947841441,-168.0,0.00025084,2]
[385653518,1757947841450,-150.57746817,0.00025094,2]
[385653519,1757947841459,-216.592,0.00025104,2]
[385653520,1757947841468,-541.01965601,0.00025105,2]
[385653521,1757947841478,-2164.07862403,0.00025105,2]
[385653522,1757947841486,-4864.30772717,0.00025105,2]
[385653523,1757947841496,-441.22011927,0.00025105,2]
[385653524,1757947841505,-894.93614871,0.00025105,2]
[385653525,1757947841514,-793.53511033,0.00025105,2]
[385653526,1757947841523,-2944.0,0.00025111,2]
[385653527,1757947841532,-290.0,0.00025133,2]
[385653528,1757947841541,-300.000001,0.000252,2]
[385653529,1757947841550,-500.0,0.00025205,3]
[385653530,1757947841559,-480.0,0.00025205,3]
[385653531,1757947841568,-480.0,0.00025205,3]
[385653532,1757947841577,-480.0,0.00025205,3]
[385653533,1757947841586,-510.05,0.00025205,3]
[385653534,1757947841595,-2242.61137748,0.00025205,3]
[385653666,1757947846539,-480.0,0.00024657,3]
[385653668,1757947846548,-151.0,0.00024759,2]
[385653670,1757947846558,-151.0,0.00024759,2]
[385653672,1757947846567,-151.0,0.00024759,2]
[385653674,1757947846577,-480.0,0.00024931,3]
[385653676,1757947846586,-2052.64862252,0.00025205,3]
[385653678,1757947846595,-1094.72,0.00025205,3]
[385653680,1757947846606,-480.0,0.00025205,3]
[385653682,1757947846615,-480.0,0.00025205,3]
[385653684,1757947846624,-480.0,0.00025205,3]
[385653686,1757947846633,-480.0,0.00025205,3]
[385653688,1757947846643,-480.0,0.00025205,3]
[385653690,1757947846652,-204.6269948,0.00025205,3]
[385653692,1757947846661,-480.0,0.00025205,3]
[385653694,1757947846670,-772.64,0.00025205,3]
[385653696,1757947846679,-282.36812168,0.00025205,3]
[385653796,1757947904311,310.00002746,0.00030176,50]
[385653799,1757948197869,235.0,0.00020525,2]
[385653809,1757948517495,168.01,0.00024,30]
[385653810,1757948682758,163.970046,0.00027397,120]
[385653812,1757948795901,-2827.10209783,0.00021793,2]
[385653813,1757948815888,-328.72347037,0.00021793,2]
[385653816,1757948825899,-300.0,0.00022012,2]
[385653817,1757948835953,-441.31805476,0.00022013,2]
[385653818,1757948836406,53790.0,0.00030172,50]
[385653819,1757948845942,-441.30805476,0.00021793,2]
[385653820,1757948845970,-1200.0,0.00022012,2]
[385653821,1757948846013,-6717.39389048,0.00022013,2]
[385653822,1757948856121,-528.6832238,0.00021961,2]
[385653823,1757948856150,-678.26727204,0.00022013,2]
[385653824,1757948856183,-7586.10900832,0.00022013,2]
[385653827,1757948880623,526.68,0.00017982,2]
[385653828,1757948880890,526.68,0.00017982,2]
[385653829,1757948881239,526.66,0.00017982,2]
[385653831,1757948928164,150.5,0.00024547,120]
[385653832,1757948928625,163.11,0.00024537,120]
[385653833,1757948963144,-5000.0,0.00021591,2]
[385653834,1757948963165,-165.77456623,0.00021809,2]
[385653835,1757948963186,-4558.69194524,0.00022029,2]
[385653836,1757948963206,-254.16180757,0.000221,2]
[385653837,1757948972076,383.42,0.00027397,120]
[385653896,1757949032876,-5000.0,0.0002166,2]
[385653898,1757949032885,-1200.0,0.00021878,2]
[385653900,1757949032895,-5000.0,0.00021879,2]
[385653901,1757949032904,-300.0,0.00022099,2]
[385653902,1757949032913,-300.0,0.00022099,2]
[385653903,1757949032923,-300.0,0.00022099,2]
[385653904,1757949032932,-300.0,0.00022099,2]
[385653905,1757949032941,-245.83819243,0.000221,2]
[385653906,1757949032951,-276.8710291,0.00022477,2]
[385653907,1757949032960,-630.310909,0.00022581,2]
[385653908,1757949032969,-500.0,0.00022873,2]
[385653909,1757949032978,-501.52379241,0.00022873,2]
[385653910,1757949032987,-172.00094764,0.00022873,2]
[385653911,1757949032996,-500.0,0.00022873,2]
[385653912,1757949033005,-500.0,0.00022873,2]
[385653913,1757949033015,-500.0,0.00022873,2]
[385653914,1757949033025,-500.0,0.00022873,2]
[385653915,1757949033034,-262.46798403,0.00022873,2]
[385653916,1757949033044,-500.0,0.00022873,2]
[385653917,1757949033054,-500.0,0.00022873,2]
[385653918,1757949033064,-50000.0,0.00022893,2]
[385653919,1757949033073,-1351.73789738,0.00022894,2]
[385653920,1757949033083,-288.0,0.00023125,2]
[385653921,1757949033091,-802.0,0.00023136,2]
[385653923,1757949033100,-652.4,0.00023161,10]
[385653925,1757949033110,-1244.09,0.00023161,10]
[385653927,1757949033119,-1036.74,0.00023161,10]
[385653929,1757949033129,-863.95,0.00023161,10]
[385653931,1757949033138,-500.0,0.00023172,2]
[385653933,1757949033148,-347.53221149,0.00023173,2]
[385653935,1757949033158,-500.0,0.00023173,2]
[385653937,1757949033168,-500.0,0.00023173,2]
[385653939,1757949033178,-500.0,0.00023173,2]
[385653941,1757949033187,-500.0,0.00023173,2]
[385653943,1757949033197,-500.0,0.00023173,2]
[385653945,1757949033207,-500.0,0.00023173,2]
[385653947,1757949033216,-1002.97604158,0.00023196,2]
[385653949,1757949033225,-1001.37998563,0.00023421,2]
[385653951,1757949033235,-1000.0,0.00023421,2]